bitfinex-derivatives/quotes_BNBF0:USTF0_20250529
["timestamp","ask_amount","ask_price","bid_price","bid_amount"]
[1748489704523,0.29080334,687.75,686.92,0.56740719]
[1748489704724,0.29080334,687.75,686.93,0.56740607]
[1748489705027,0.29080334,687.75,686.94,0.56740607]
[1748489705228,0.29080334,687.75,686.9,0.566]
[1748489705423,0.29080334,687.75,686.91,0.56741472]
[1748489705624,0.29080334,687.75,686.9,0.566]
[1748489705625,0.29080334,687.75,686.92,0.56741475]
[1748489705828,0.29080334,687.75,686.93,0.56741475]
[1748489706025,0.29080334,687.75,686.94,0.56741475]
[1748489706225,0.29080334,687.75,686.95,0.56741475]
[1748489706427,0.29080334,687.75,686.96,0.56740743]
[1748489706628,0.29080334,687.75,686.97,0.56740743]
[1748489706829,0.29080334,687.75,686.98,0.56740743]
[1748489707030,0.29080334,687.75,686.99,0.56740743]
[1748489707226,0.29080334,687.75,687.0,0.56740743]
[1748489707431,0.29080334,687.75,687.01,0.56740743]
[1748489707626,0.29080334,687.75,687.02,0.56740743]
[1748489707827,0.29080334,687.75,687.03,0.56741619]
[1748489708031,0.29080334,687.75,687.04,0.56741619]
[1748489708231,0.29080334,687.75,687.05,0.56741619]
[1748489708432,0.29080334,687.75,687.06,0.56741619]
[1748489708632,0.29080334,687.75,686.9,0.566]
[1748489708633,0.29080334,687.75,687.07,0.56741918]
[1748489708832,0.29080334,687.75,687.08,0.56741918]
[1748489709031,0.29080334,687.75,687.09,0.56741918]
[1748489709230,0.29080334,687.75,687.1,0.56741968]
[1748489709433,0.29080334,687.75,687.11,0.56741968]
[1748489709631,0.29080334,687.75,687.12,0.56741968]
[1748489709831,0.29080334,687.75,686.9,0.566]
[1748489709832,0.29080334,687.75,687.13,0.56742404]
[1748489710032,0.29080334,687.75,687.14,0.56742404]
[1748489710233,0.29080334,687.75,687.15,0.56742404]
[1748489710433,0.29080334,687.75,687.16,0.56742404]
[1748489710634,0.29080334,687.75,687.17,0.56742404]
[1748489710835,0.29080334,687.75,687.18,0.56742404]
[1748489711031,0.29080334,687.75,687.19,0.56743871]
[1748489711330,0.29080334,687.75,687.2,0.56743871]
[1748489711531,0.29080334,687.75,687.21,0.56743871]
[1748489711732,0.29080334,687.75,687.22,0.56744885]
[1748489711936,0.29080334,687.75,687.23,0.56744885]
[1748489712136,0.29080334,687.75,687.24,0.56745115]
[1748489712338,0.29080334,687.75,687.25,0.56745115]
[1748489712539,0.29080334,687.75,687.26,0.56745115]
[1748489712737,0.29080334,687.75,687.27,0.56745115]
[1748489712937,0.29080334,687.75,687.28,0.56745929]
[1748489713132,0.29080334,687.75,686.9,0.566]
[1748489713133,0.29080334,687.75,687.29,0.56745929]
[1748489713335,0.29080334,687.75,687.3,0.56745929]
[1748489713534,0.29080334,687.75,687.31,0.56745929]
[1748489713733,0.29080334,687.75,687.32,0.56745929]
[1748489713932,0.29080334,687.75,687.33,0.56752617]
[1748489714135,0.29080334,687.75,687.34,0.56752617]
[1748489714337,0.29080334,687.75,687.35,0.56752267]
[1748489714634,0.29080334,687.75,687.36,0.56752267]
[1748489714833,0.29080334,687.75,687.37,0.56752267]
[1748489715038,0.29080334,687.75,687.38,0.56752267]
[1748489715237,0.29080334,687.75,687.39,0.56753529]
[1748489715538,0.29080334,687.75,687.4,0.56753529]
[1748489715740,0.29080334,687.75,687.41,0.56753702]
[1748489715934,0.29080334,687.75,687.42,0.56753702]
[1748489716134,0.29080334,687.75,687.43,0.56753765]
[1748489716338,0.29080334,687.75,686.9,0.566]
[1748489716535,0.29080334,687.75,686.91,0.56754936]
[1748489716737,0.29080334,687.75,686.92,0.56754936]
[1748489717041,0.29080334,687.75,686.93,0.56754116]
[1748489717342,0.29080334,687.75,686.94,0.56754116]
[1748489717537,0.29080334,687.75,686.95,0.56753965]
[1748489717741,0.29080334,687.75,686.9,0.566]
[1748489717942,0.29080334,687.75,686.91,0.56753344]
[1748489718144,0.29080334,687.75,686.9,0.566]
[1748489718145,0.29080334,687.75,686.92,0.56753344]
[1748489718342,0.29080334,687.75,686.93,0.56753344]
[1748489718540,0.29080334,687.75,686.94,0.56753344]
[1748489718737,0.29080334,687.75,686.95,0.56753344]
[1748489718938,0.29080334,687.75,686.96,0.56753344]
[1748489719245,0.29080334,687.75,686.97,0.56752775]
[1748489719446,0.29080334,687.75,686.98,0.56752775]
[1748489719641,0.29080334,687.75,686.9,0.566]
[1748489719642,0.29080334,687.75,686.99,0.56752775]
[1748489719943,0.29080334,687.75,687.0,0.56751743]
[1748489720139,0.29080334,687.75,687.01,0.56751743]
[1748489720343,0.29080334,687.75,687.02,0.56751743]
[1748489720537,0.29080334,687.75,687.03,0.56756792]
[1748489720738,0.29080334,687.75,687.04,0.56756792]
[1748489720941,0.29080334,687.75,687.05,0.56756753]
[1748489721142,0.29080334,687.75,686.9,0.566]
[1748489721143,0.29080334,687.75,687.06,0.56756753]
[1748489721342,0.29080334,687.75,687.07,0.56756753]
[1748489721542,0.29080334,687.75,687.08,0.56756753]
[1748489721738,0.29080334,687.75,687.09,0.56756753]
[1748489721945,0.29080334,687.75,687.1,0.56756753]
[1748489722138,0.29080334,687.75,687.11,0.56756753]
[1748489722339,0.29080334,687.75,687.12,0.56756753]
[1748489722539,0.29080334,687.75,687.13,0.56756753]
[1748489722740,0.29080334,687.75,687.14,0.56757307]
[1748489723044,0.29080334,687.75,687.15,0.5674734]
[1748489723245,0.29080334,687.75,687.16,0.5674734]
[1748489723545,0.29080334,687.75,687.17,0.5674734]
[1748489723746,0.29080334,687.75,687.18,0.5674734]
[1748489724044,0.29080334,687.75,687.19,0.5674734]
[1748489724245,0.29080334,687.75,687.2,0.56747535]
[1748489724441,0.29080334,687.75,687.21,0.5674768]
[1748489724644,0.29080334,687.75,687.22,0.5674768]
[1748489724841,0.29080334,687.75,687.23,0.5674768]
[1748489725046,0.29080334,687.75,687.09,0.756]
[1748489725047,0.29080334,687.75,687.24,0.5674768]
[1748489725241,0.29080334,687.75,687.09,0.756]
[1748489725445,0.29080334,687.75,687.1,0.56747802]
[1748489725643,0.29080334,687.75,687.11,0.56747714]
[1748489725843,0.29080334,687.75,687.12,0.56747714]
[1748489726043,0.29080334,687.75,687.09,0.756]
[1748489726248,0.29080334,687.75,687.1,0.56747981]
[1748489726450,0.29080334,687.75,687.11,0.56752298]
[1748489726646,0.29080334,687.75,687.12,0.5675217]
[1748489726844,0.29080334,687.75,687.09,0.756]
[1748489727248,0.29080334,687.75,687.1,0.56752186]
[1748489727448,0.29080334,687.75,687.11,0.56752186]
[1748489727648,0.29080334,687.75,687.12,0.56752488]
[1748489727851,0.29080334,687.75,687.13,0.56752488]
[1748489728052,0.29080334,687.75,687.14,0.56752488]
[1748489728247,0.29080334,687.75,687.09,0.756]
[1748489728248,0.29080334,687.75,687.15,0.56752588]
[1748489728447,0.29080334,687.75,687.09,0.756]
[1748489728851,0.29080334,687.75,687.1,0.56753219]
[1748489729150,0.29080334,687.75,687.11,0.56753219]
[1748489729450,0.29080334,687.75,687.12,0.56753219]
[1748489729645,0.29080334,687.75,687.13,0.56753219]
[1748489729850,0.29080334,687.75,687.14,0.56752974]
[1748489730051,0.29080334,687.75,687.09,0.756]
[1748489730350,0.29080334,687.75,687.1,0.56752974]
[1748489730546,0.29080334,687.75,687.11,0.56752974]
[1748489730850,0.29080334,687.75,687.12,0.56752974]
[1748489731150,0.29080334,687.75,687.13,0.56750757]
[1748489731350,0.29080334,687.75,687.14,0.56750757]
[1748489731551,0.29080334,687.75,687.09,0.756]
[1748489731552,0.29080334,687.75,687.15,0.567477]
[1748489731746,0.29080334,687.75,687.16,0.567477]
[1748489731950,0.29080334,687.75,687.17,0.567477]
[1748489732251,0.29080334,687.75,687.18,1.62180379]
[1748489732450,0.29080334,687.75,687.19,1.62180379]
[1748489732653,0.29080334,687.75,687.09,0.756]
[1748489732849,0.29080334,687.75,687.1,1.62157631]
[1748489733049,0.29080334,687.75,687.11,1.62167035]
[1748489733251,0.29080334,687.75,687.12,1.62056964]
[1748489733548,0.29080334,687.75,687.09,0.756]
[1748489733549,0.29080334,687.75,687.13,1.62056964]
[1748489733747,0.29080334,687.75,687.14,1.62056964]
[1748489733950,0.29080334,687.75,687.15,1.62056964]
[1748489734149,0.29080334,687.75,687.16,1.62056964]
[1748489734355,0.29080334,687.75,687.17,1.62045749]
[1748489734554,0.29080334,687.75,687.18,1.62045749]
[1748489734750,0.29080334,687.75,687.19,1.62018701]
[1748489735055,0.29080334,687.75,687.2,1.62018701]
[1748489735249,0.29080334,687.75,687.21,1.05398781]
[1748489735551,0.29080334,687.75,687.22,1.62020948]
[1748489735750,0.29080334,687.75,687.23,1.62020948]
[1748489735954,0.29080334,687.75,687.24,1.62020948]
[1748489736155,0.29080334,687.75,687.25,1.62000204]
[1748489736355,0.29080334,687.75,687.26,1.62000204]
[1748489736556,0.29080334,687.75,687.27,1.62000204]
[1748489736852,0.29080334,687.75,687.28,1.61995076]
[1748489737056,0.29080334,687.75,687.29,1.0538613]
[1748489737256,0.29080334,687.75,687.18,0.761]
[1748489737558,0.29080334,687.75,687.19,1.61989742]
[1748489737852,0.29080334,687.75,687.2,1.61989742]
[1748489738057,0.29080334,687.75,687.21,1.61990436]
[1748489738258,0.29080334,687.75,687.22,1.61986357]
[1748489738459,0.29080334,687.75,687.23,1.61994876]
[1748489738652,0.29080334,687.75,687.18,0.761]
[1748489738653,0.29080334,687.75,687.24,1.61996201]
[1748489738854,0.29080334,687.75,687.25,1.61996243]
[1748489739056,0.29080334,687.75,687.18,0.761]
[1748489739057,0.29080334,687.75,687.26,1.61996243]
[1748489739256,0.29080334,687.75,687.27,1.61996243]
[1748489739556,0.29080334,687.75,687.18,0.761]
[1748489739557,0.29080334,687.75,687.28,1.05388138]
[1748489739753,0.29080334,687.75,687.29,1.05388138]
[1748489740052,0.29080334,687.75,687.3,1.05388138]
[1748489740259,0.29080334,687.75,687.31,1.05388138]
[1748489740466,0.29080334,687.75,687.18,0.761]
[1748489740665,0.29080334,687.75,687.19,0.56587275]
[1748489740861,0.29080334,687.75,687.2,0.56587275]
[1748489741062,0.29080334,687.75,687.18,0.761]
[1748489741063,0.29080334,687.75,687.21,0.56587275]
[1748489741264,0.29080334,687.75,687.22,0.56577023]
[1748489741565,0.29080334,687.75,687.23,0.56577023]
[1748489741765,0.29080334,687.75,687.18,0.761]
[1748489741964,0.29080334,687.75,687.19,0.56571106]
[1748489742164,0.29080334,687.75,687.18,0.761]
[1748489742365,0.29080334,687.75,687.19,0.56571116]
[1748489742566,0.29080334,687.75,687.18,0.761]
[1748489742866,0.29080334,687.75,687.19,0.56570651]
[1748489743163,0.29080334,687.75,687.2,0.56570651]
[1748489743359,0.29080334,687.75,687.18,0.761]
[1748489743564,0.29080334,687.75,687.19,0.56556672]
[1748489743762,0.29080334,687.75,687.18,0.761]
[1748489743962,0.29080334,687.75,687.19,0.56555893]
[1748489744262,0.29080334,687.75,687.18,0.761]
[1748489744464,0.29080334,687.75,687.19,0.56544429]
[1748489744666,0.29080334,687.75,687.18,0.761]
[1748489761878,0.29080334,687.75,687.19,0.517]
[1748489775884,0.29080334,687.75,687.2,0.806]
[1748489779394,0.29080334,687.75,687.21,0.725]
[1748489815721,0.29080334,687.75,687.22,0.559]
[1748489837242,0.29080334,687.75,687.23,0.72]
[1748489846850,0.29080334,687.75,687.24,0.601]
[1748489868671,0.25329447,687.63,687.24,0.601]
[1748489869074,0.29085832,687.62,687.24,0.601]
[1748489881985,0.29085832,687.62,687.14,0.73]
[1748489883785,0.29085832,687.62,687.15,0.742]
[1748489917808,0.29085832,687.62,687.14,0.73]
[1748489920412,0.29085832,687.62,687.15,0.638]
[1748489936326,0.29085832,687.62,687.09,0.724]
[1748489939026,0.29085832,687.62,687.1,0.572]
[1748489964242,0.29085832,687.62,686.84,0.615]
[1748489966246,0.29085832,687.62,686.85,0.589]
[1748489983253,0.29085832,687.62,686.79,0.578]
[1748489985153,0.29085832,687.62,686.8,0.696]
[1748489999265,0.29085832,687.62,686.79,0.578]
[1748490001361,0.29085832,687.62,686.8,0.626]
[1748490036297,0.29085832,687.62,686.79,0.578]
[1748490038488,0.29085832,687.62,685.89,0.46366923]
[1748490038791,0.29085832,687.62,685.9,1.61017613]
[1748490039089,0.29085832,687.62,685.91,0.56356619]
[1748490039289,0.29085832,687.62,685.92,0.56360156]
[1748490039496,0.29085832,687.62,685.9,0.583]
[1748490039695,0.29085832,687.62,685.91,0.56360205]
[1748490039895,0.29085832,687.62,685.92,1.61048491]
[1748490040191,0.29085832,687.62,685.93,1.61048491]
[1748490040397,0.29085832,687.62,685.94,1.61048491]
[1748490040696,0.29085832,687.62,685.95,1.6103063]
[1748490040897,0.29085832,687.62,685.96,1.04663831]
[1748490041097,0.29085832,687.62,685.97,1.61018957]
[1748490041299,0.29085832,687.62,685.98,1.6101942]
[1748490041492,0.29085832,687.62,685.95,0.674]
[1748490041698,0.29085832,687.62,685.96,1.61019432]
[1748490041898,0.29085832,687.62,685.97,1.61019432]
[1748490042099,0.29085832,687.62,685.98,1.61019432]
[1748490042398,0.29085832,687.62,685.99,1.61019432]
[1748490042698,0.29085832,687.62,686.0,1.60979028]
[1748490042898,0.29085832,687.62,686.01,1.60979028]
[1748490043198,0.29085832,687.62,686.02,1.60978822]
[1748490043394,0.29085832,687.62,686.03,1.04644615]
[1748490043598,0.29085832,687.62,686.04,1.60982591]
[1748490043794,0.29085832,687.62,686.05,1.60982591]
[1748490044099,0.29085832,687.62,686.06,1.60982591]
[1748490044398,0.29085832,687.62,686.07,1.60970457]
[1748490044598,0.29085832,687.62,686.08,1.60970457]
[1748490044895,0.29085832,687.62,686.09,1.60940194]
[1748490045098,0.29085832,687.62,686.1,1.60940224]
[1748490045300,0.29085832,687.62,686.11,1.60940224]
[1748490045493,0.29085832,687.62,685.95,0.674]
[1748490045494,0.29085832,687.62,686.12,1.60939194]
[1748490045694,0.29085832,687.62,686.13,1.60939194]
[1748490045994,0.29085832,687.62,686.14,1.60939194]
[1748490046295,0.29085832,687.62,686.15,1.60922562]
[1748490046498,0.29085832,687.62,686.16,1.6091896]
[1748490046801,0.29085832,687.62,686.17,1.60905687]
[1748490047000,0.29085832,687.62,686.18,1.60866433]
[1748490047200,0.29085832,687.62,686.19,1.60868919]
[1748490047398,0.29085832,687.62,686.2,1.60868919]
[1748490047600,0.29085832,687.62,685.95,0.674]
[1748490047894,0.29085832,687.62,685.96,1.60851789]
[1748490048100,0.29085832,687.62,685.97,1.60851789]
[1748490048301,0.29085832,687.62,685.98,1.60851789]
[1748490048498,0.29085832,687.62,685.99,1.60851789]
[1748490048702,0.29085832,687.62,686.0,1.04555353]
[1748490048898,0.29085832,687.62,686.01,1.60847273]
[1748490049097,0.29085832,687.62,686.02,1.60847273]
[1748490049405,0.29085832,687.62,686.03,1.60847273]
[1748490049601,0.29085832,687.62,686.04,1.60847273]
[1748490049801,0.29085832,687.62,686.05,1.608352]
[1748490050000,0.29085832,687.62,686.06,1.60820108]
[1748490050197,0.29085832,687.62,686.07,1.60820104]
[1748490050398,0.29085832,687.62,686.08,1.60820104]
[1748490050603,0.29085832,687.62,686.09,0.5626761]
[1748490050804,0.29085832,687.62,686.1,1.60791615]
[1748490050998,0.29085832,687.62,686.11,1.60791615]
[1748490051199,0.29085832,687.62,686.12,1.60791615]
[1748490051499,0.29085832,687.62,686.13,1.60791615]
[1748490051702,0.29085832,687.62,686.14,1.60791615]
[1748490051905,0.29085832,687.62,686.15,1.60791615]
[1748490052102,0.29085832,687.62,686.16,1.60623569]
[1748490052307,0.29085832,687.62,686.17,1.60623569]
[1748490052502,0.29085832,687.62,686.18,1.60623401]
[1748490052701,0.29085832,687.62,686.19,1.60623405]
[1748490052905,0.29085832,687.62,686.2,1.60623405]
[1748490053106,0.29085832,687.62,686.21,1.60623405]
[1748490053306,0.29085832,687.62,686.22,1.60623405]
[1748490053507,0.29085832,687.62,686.23,1.60623405]
[1748490053708,0.29085832,687.62,686.24,1.60623405]
[1748490054003,0.29085832,687.62,686.25,0.56186408]
[1748490054205,0.29085832,687.62,686.26,1.04375244]
[1748490054504,0.29085832,687.62,685.9,0.583]
[1748490054809,0.29085832,687.62,685.91,1.04375374]
[1748490055005,0.29085832,687.62,685.9,0.583]
[1748490055410,0.29085832,687.62,685.91,1.04375375]
[1748490055605,0.29085832,687.62,685.92,1.60561862]
[1748490055809,0.29085832,687.62,685.93,0.5618642]
[1748490056009,0.29085832,687.62,685.9,0.583]
[1748490056705,0.29085832,687.62,685.91,1.04346106]
[1748490056910,0.29085832,687.62,685.92,1.60532386]
[1748490057204,0.29085832,687.62,685.93,1.60532359]
[1748490057406,0.29085832,687.62,685.94,1.60511237]
[1748490057710,0.29085832,687.62,685.95,1.60511237]
[1748490057907,0.29085832,687.62,685.96,1.60511237]
[1748490058110,0.29085832,687.62,685.97,1.60472276]
[1748490058308,0.29085832,687.62,685.92,0.558]
[1748490058508,0.29085832,687.62,685.93,1.60476544]
[1748490058811,0.29085832,687.62,685.94,1.60476544]
[1748490059012,0.29085832,687.62,685.95,1.60434213]
[1748490059213,0.29085832,687.62,685.96,1.60434213]
[1748490059411,0.29085832,687.62,685.97,1.60434213]
[1748490059612,0.29085832,687.62,685.98,1.60434213]
[1748490059808,0.29085832,687.62,685.99,1.60430462]
[1748490060013,0.29085832,687.62,686.0,1.60430462]
[1748490060213,0.29085832,687.62,686.01,1.60430462]
[1748490060410,0.29085832,687.62,686.02,1.60425711]
[1748490060610,0.29085832,687.62,686.03,1.60425871]
[1748490060813,0.29085832,687.62,686.04,1.60425871]
[1748490061017,0.29085832,687.62,685.97,0.483]
[1748490061018,0.29085832,687.62,686.05,1.60425871]
[1748490061217,0.29085832,687.62,685.97,0.483]
[1748490061415,0.29085832,687.62,685.98,1.60425703]
[1748490061716,0.29085832,687.62,685.99,1.60425703]
[1748490061915,0.29085832,687.62,686.0,1.60425703]
[1748490062113,0.29085832,687.62,686.01,1.60389787]
[1748490062314,0.29085832,687.62,686.02,1.6038988]
[1748490062513,0.29085832,687.62,686.03,0.56134265]
[1748490062714,0.29085832,687.62,685.97,0.483]
[1748490063714,0.29085832,687.62,685.98,0.56130022]
[1748490063916,0.29085832,687.62,685.97,0.483]
[1748490064117,0.29085832,687.62,685.98,1.04247801]
[1748490064313,0.29085832,687.62,685.97,0.483]
[1748490065418,0.29085832,687.62,685.98,0.56125521]
[1748490065618,0.29085832,687.62,685.97,0.483]
[1748490066419,0.29085832,687.62,685.98,1.04230617]
[1748490066620,0.29085832,687.62,685.99,1.04221495]
[1748490066820,0.29085832,687.62,686.0,0.56115928]
[1748490067114,0.29085832,687.62,685.97,0.483]
[1748490067315,0.29085832,687.62,685.98,0.56116014]
[1748490067520,0.29085832,687.62,685.97,0.483]
[1748490067722,0.29085832,687.62,685.98,1.04221561]
[1748490067916,0.29085832,687.62,685.97,0.483]
[1748490068221,0.29085832,687.62,685.98,0.56115863]
[1748490068415,0.29085832,687.62,685.99,1.60337997]
[1748490068617,0.29085832,687.62,685.97,0.483]
[1748490069021,0.25342174,687.22,685.98,0.56115965]
[1748490069219,0.29103608,687.2,685.99,1.04221058]
[1748490069422,0.29103608,687.2,686.0,0.56115195]
[1748490069618,0.29103608,687.2,685.97,0.483]
[1748490070020,0.29103608,687.2,685.98,1.04216946]
[1748490070222,0.29103608,687.2,685.97,0.483]
[1748490070418,0.29103608,687.2,685.99,1.04216962]
[1748490070722,0.29103608,687.2,686.0,1.60318302]
[1748490070918,0.29103608,687.2,686.01,1.04208956]
[1748490071118,0.29103608,687.2,685.97,0.483]
[1748490071524,0.29103608,687.2,685.98,1.04209682]
[1748490071724,0.29103608,687.2,685.97,0.483]
[1748490072228,0.29103608,687.2,685.98,1.60304682]
[1748490072423,0.29103608,687.2,685.97,0.483]
[1748490072623,0.29103608,687.2,685.98,0.561053]
[1748490072921,0.29103608,687.2,685.97,0.483]
[1748490072922,0.29103608,687.2,685.99,1.60304556]
[1748490073226,0.29103608,687.2,685.97,0.483]
[1748490074422,0.29103608,687.2,685.98,1.60291418]
[1748490074626,0.29103608,687.2,685.99,1.60291418]
[1748490074929,0.29103608,687.2,686.0,1.60291418]
[1748490075124,0.29103608,687.2,686.01,1.6022388]
[1748490075324,0.29103608,687.2,685.97,0.483]
[1748490075529,0.29103608,687.2,685.98,1.60205116]
[1748490075725,0.29103608,687.2,685.99,1.60205116]
[1748490075930,0.29103608,687.2,686.0,1.60205116]
[1748490076124,0.29103608,687.2,686.01,1.60205116]
[1748490076329,0.29103608,687.2,686.02,1.60205116]
[1748490076528,0.29103608,687.2,686.03,1.60205116]
[1748490076729,0.29103608,687.2,686.04,1.60205116]
[1748490076926,0.29103608,687.2,686.05,1.60140533]
[1748490077127,0.29103608,687.2,686.06,1.60140505]
[1748490077331,0.29103608,687.2,686.07,1.60140475]
[1748490077628,0.29103608,687.2,685.97,0.483]
[1748490077629,0.29103608,687.2,686.08,1.60140577]
[1748490077830,0.29103608,687.2,686.09,1.60118385]
[1748490078030,0.29103608,687.2,686.1,1.60118385]
[1748490078331,0.29103608,687.2,686.11,1.60137047]
[1748490078530,0.29103608,687.2,686.12,1.60126657]
[1748490078729,0.29103608,687.2,685.97,0.483]
[1748490078930,0.29103608,687.2,685.98,0.56035967]
[1748490079131,0.29103608,687.2,685.99,1.60104294]
[1748490079433,0.29103608,687.2,685.97,0.483]
[1748490079634,0.29103608,687.2,685.98,1.60104248]
[1748490079834,0.29103608,687.2,685.99,1.60104248]
[1748490080036,0.29103608,687.2,686.0,1.60104248]
[1748490080230,0.29103608,687.2,686.04,0.46192673]
[1748490080434,0.29103608,687.2,686.06,0.46192673]
[1748490080630,0.29103608,687.2,686.07,0.56035929]
[1748490080830,0.29103608,687.2,686.03,0.46192673]
[1748490081230,0.29103608,687.2,686.11,0.46192673]
[1748490081435,0.29103608,687.2,686.12,1.60091258]
[1748490081738,0.29103608,687.2,686.13,1.60091551]
[1748490082037,0.29103608,687.2,686.14,1.60091551]
[1748490082238,0.29103608,687.2,686.15,1.04058365]
[1748490082437,0.29103608,687.2,686.16,1.60089773]
[1748490082638,0.29103608,687.2,686.17,1.6009208]
[1748490082938,0.29103608,687.2,686.11,0.46192673]
[1748490082939,0.29103608,687.2,686.18,0.56025705]
[1748490083238,0.29103608,687.2,686.19,1.60073425]
[1748490083434,0.29103608,687.2,686.2,1.60073425]
[1748490083633,0.29103608,687.2,686.21,1.60073425]
[1748490083938,0.29103608,687.2,686.22,1.60073425]
[1748490084138,0.29103608,687.2,686.23,1.60073425]
[1748490084342,0.29103608,687.2,686.24,1.60073425]
[1748490084535,0.29103608,687.2,686.25,1.60059245]
[1748490084732,0.29103608,687.2,686.1,0.46192673]
[1748490084936,0.29103608,687.2,686.11,1.60044304]
[1748490085135,0.29103608,687.2,686.12,1.60044304]
[1748490085339,0.29103608,687.2,686.13,2.06236977]
[1748490085638,0.29103608,687.2,686.14,1.60044304]
[1748490085839,0.29103608,687.2,686.15,1.60044304]
[1748490086039,0.29103608,687.2,686.16,1.60044304]
[1748490086338,0.29103608,687.2,686.14,0.623]
[1748490086339,0.29103608,687.2,686.17,1.04025923]
[1748490086540,0.29103608,687.2,686.14,0.623]
[1748490086734,0.29103608,687.2,686.15,1.04026133]
[1748490086938,0.29103608,687.2,686.16,1.60037893]
[1748490087139,0.29103608,687.2,686.17,1.60037893]
[1748490087338,0.29103608,687.2,686.18,1.60037893]
[1748490087535,0.29103608,687.2,686.19,1.60037893]
[1748490087740,0.29103608,687.2,686.2,1.60040751]
[1748490087941,0.29103608,687.2,686.14,0.623]
[1748490088141,0.29103608,687.2,686.15,1.04025844]
[1748490088441,0.29103608,687.2,686.14,0.623]
[1748490088940,0.29103608,687.2,686.15,1.04025909]
[1748490089137,0.29103608,687.2,686.16,0.56012897]
[1748490089338,0.29103608,687.2,686.17,0.56013109]
[1748490089542,0.29103608,687.2,686.14,0.623]
[1748490089743,0.29103608,687.2,686.18,1.04026511]
[1748490089938,0.29103608,687.2,686.19,1.60040043]
[1748490090143,0.29103608,687.2,686.14,0.623]
[1748490090645,0.29103608,687.2,686.15,1.04022006]
[1748490090841,0.29103608,687.2,686.14,0.623]
[1748490090842,0.29103608,687.2,686.16,0.56012926]
[1748490091143,0.29103608,687.2,686.14,0.623]
[1748490091743,0.29103608,687.2,686.15,1.04016602]
[1748490091943,0.29103608,687.2,686.16,1.60026602]
[1748490092139,0.29103608,687.2,686.17,1.60026602]
[1748490092439,0.29103608,687.2,686.18,1.60026602]
[1748490092643,0.29103608,687.2,686.19,1.60026602]
[1748490092841,0.29103608,687.2,686.2,1.60026602]
[1748490093045,0.29103608,687.2,686.21,1.60025925]
[1748490093241,0.29103608,687.2,686.14,0.623]
[1748490093546,0.29103608,687.2,686.15,1.60025787]
[1748490093743,0.29103608,687.2,686.16,1.60025787]
[1748490093943,0.29103608,687.2,686.17,1.60025787]
[1748490094143,0.29103608,687.2,686.18,1.60025787]
[1748490094345,0.29103608,687.2,686.19,1.60025787]
[1748490094645,0.29103608,687.2,686.2,0.56016107]
[1748490094841,0.29103608,687.2,686.21,1.6003792]
[1748490095045,0.29103608,687.2,686.22,1.6003792]
[1748490095245,0.29103608,687.2,686.23,1.6003792]
[1748490095446,0.29103608,687.2,686.19,0.568]
[1748490095447,0.29103608,687.2,686.24,1.6003792]
[1748490095646,0.29103608,687.2,686.25,1.6003792]
[1748490095846,0.29103608,687.2,686.26,1.6003792]
[1748490096048,0.29103608,687.2,686.27,1.6003792]
[1748490096243,0.29103608,687.2,686.28,1.04025834]
[1748490096447,0.29103608,687.2,686.29,1.60044096]
[1748490096644,0.29103608,687.2,686.3,1.60044096]
[1748490096844,0.29103608,687.2,686.31,1.60044096]
[1748490097042,0.29103608,687.2,686.32,1.60053524]
[1748490097246,0.29103608,687.2,686.33,1.60054502]
[1748490097542,0.29103608,687.2,686.34,1.60055354]
[1748490097841,0.29103608,687.2,686.35,1.60055354]
[1748490098047,0.29103608,687.2,686.36,1.60060043]
[1748490098243,0.29103608,687.2,686.37,1.59963641]
[1748490098447,0.29103608,687.2,686.38,1.59963745]
[1748490098746,0.29103608,687.2,686.39,1.59966712]
[1748490098942,0.29103608,687.2,686.19,0.568]
[1748490098943,0.29103608,687.2,686.4,1.5996661]
[1748490099145,0.29103608,687.2,686.41,1.59980803]
[1748490099347,0.29103608,687.2,686.42,1.59980803]
[1748490099546,0.29103608,687.2,686.43,1.59980803]
[1748490099847,0.29103608,687.2,686.44,1.5998004]
[1748490100047,0.29103608,687.2,686.45,1.5998004]
[1748490100251,0.29103608,687.2,686.46,1.5997627]
[1748490100443,0.29103608,687.2,686.47,1.60022762]
[1748490100645,0.29103608,687.2,686.48,1.60022998]
[1748490100846,0.29103608,687.2,686.49,1.60036218]
[1748490101046,0.29103608,687.2,686.5,1.60036244]
[1748490101247,0.29103608,687.2,686.51,1.60036063]
[1748490101445,0.29103608,687.2,686.52,1.60036063]
[1748490101644,0.29103608,687.2,686.53,1.60036063]
[1748490101845,0.29103608,687.2,686.54,1.03982448]
[1748490102045,0.29103608,687.2,686.55,1.60094875]
[1748490102245,0.29103608,687.2,686.56,1.04017794]
[1748490102445,0.29103608,687.2,686.57,1.04017794]
[1748490102647,0.29103608,687.2,686.58,1.04061905]
[1748490102848,0.29103608,687.2,686.59,1.04061905]
[1748490103047,0.29103608,687.2,686.19,0.568]
[1748490103048,0.29103608,687.2,686.6,1.04061905]